[Event "Titled Tuesday Blitz April 18 Late 2023"]
[White "Eljanov, Pavel"]
[Black "Lorenzo De La Riva, Lazaro"]
[WhiteFideId "14102951"]
[BlackFideId "2268809"]
[WhiteElo "2598"]
[BlackElo "2294"]
[Result "1-0"]
[Round "01"]
[TimeControl "180+2"]
[Date "2023.04.18"]
[WhiteClock "0:00:47"]
[BlackClock "0:00:04"]

1. e4 {[%clk 0:03:00]}  c5 {[%clk 0:02:56]} 2. Nf3 {[%clk 0:02:59]}  d6 {[%clk 0:02:57]} 3. d4 {[%clk 0:02:59]}  cxd4 {[%clk 0:02:56]} 4. Nxd4 {[%clk 0:03:00]}  Nf6 {[%clk 0:02:56]} 5. Nc3 {[%clk 0:03:00]}  a6 {[%clk 0:02:54]} 6. Be2 {[%clk 0:02:59]}  e5 {[%clk 0:02:53]} 7. Nb3 {[%clk 0:03:00]}  Be7 {[%clk 0:02:53]} 8. Be3 {[%clk 0:02:59]}  Be6 {[%clk 0:02:51]} 9. Nd5 {[%clk 0:02:59]}  Nbd7 {[%clk 0:02:49]} 10. Qd3 {[%clk 0:02:59]}  O-O {[%clk 0:02:41]} 11. a4 {[%clk 0:02:58]}  Bxd5 {[%clk 0:02:30]} 12. exd5 {[%clk 0:02:59]}  a5 {[%clk 0:02:22]} 13. g4 {[%clk 0:02:55]}  b6 {[%clk 0:02:16]} 14. h4 {[%clk 0:02:50]}  Nc5 {[%clk 0:02:14]} 15. Nxc5 {[%clk 0:02:48]}  bxc5 {[%clk 0:02:14]} 16. g5 {[%clk 0:02:48]}  Nd7 {[%clk 0:02:12]} 17. Qe4 {[%clk 0:02:40]}  f5 {[%clk 0:02:03]} 18. gxf6 {[%clk 0:02:40]}  Nxf6 {[%clk 0:02:03]} 19. Qg2 {[%clk 0:02:40]}  e4 {[%clk 0:02:01]} 20. O-O-O {[%clk 0:02:39]}  Rb8 {[%clk 0:01:56]} 21. Bb5 {[%clk 0:02:39]}  Rxb5 {[%clk 0:01:56]} 22. axb5 {[%clk 0:02:38]}  Qd7 {[%clk 0:01:57]} 23. c4 {[%clk 0:02:38]}  a4 {[%clk 0:01:54]} 24. Rhg1 {[%clk 0:02:35]}  Rf7 {[%clk 0:01:54]} 25. Bd2 {[%clk 0:02:32]}  a3 {[%clk 0:01:51]} 26. bxa3 {[%clk 0:02:32]}  Qa7 {[%clk 0:01:50]} 27. Qh3 {[%clk 0:02:14]}  Nd7 {[%clk 0:01:45]} 28. Qb3 {[%clk 0:01:27]}  Ne5 {[%clk 0:01:40]} 29. Be3 {[%clk 0:01:21]}  Bxh4 {[%clk 0:01:15]} 30. Rg2 {[%clk 0:01:10]}  Nf3 {[%clk 0:01:10]} 31. Kb1 {[%clk 0:01:08]}  Bf6 {[%clk 0:01:08]} 32. Ka2 {[%clk 0:01:07]}  Nd4 {[%clk 0:00:56]} 33. Bxd4 {[%clk 0:01:08]}  cxd4 {[%clk 0:00:56]} 34. b6 {[%clk 0:01:08]}  Qb8 {[%clk 0:00:35]} 35. Rb1 {[%clk 0:01:08]}  Rb7 {[%clk 0:00:29]} 36. a4 {[%clk 0:01:06]}  d3 {[%clk 0:00:28]} 37. a5 {[%clk 0:01:06]}  Qa8 {[%clk 0:00:19]} 38. Qb5 {[%clk 0:01:07]}  Re7 {[%clk 0:00:10]} 39. a6 {[%clk 0:01:04]}  d2 {[%clk 0:00:06]} 40. b7 {[%clk 0:01:04]}  Qb8 {[%clk 0:00:06]} 41. Qc6 {[%clk 0:00:59]}  Re8 {[%clk 0:00:06]} 42. Qxe8+ {[%clk 0:00:56]}  Qxe8 {[%clk 0:00:05]} 43. b8=Q {[%clk 0:00:56]}  Bd8 {[%clk 0:00:06]} 44. Qb5 {[%clk 0:00:54]}  Qe5 {[%clk 0:00:05]} 45. a7 {[%clk 0:00:49]}  Qc3 {[%clk 0:00:05]} 46. a8=Q {[%clk 0:00:48]}  Qc2+ {[%clk 0:00:05]} 47. Rb2 {[%clk 0:00:47]}  d1=Q {[%clk 0:00:04]} 48. Qe8# {[%clk 0:00:47]} 1-0


[Site "https://www.chess.com"]

[Event "Titled Tuesday Blitz April 18 Late 2023"]
[White "Mikhalsky, Vladimir"]
[Black "Svane, Rasmus"]
[WhiteFideId "14144352"]
[BlackFideId "4657101"]
[WhiteElo "2236"]
[BlackElo "2597"]
[Result "0-1"]
[Round "01"]
[TimeControl "180+2"]
[Date "2023.04.18"]
[WhiteClock "0:00:06"]
[BlackClock "0:01:22"]

1. d4 {[%clk 0:02:55]}  d5 {[%clk 0:03:00]} 2. c4 {[%clk 0:02:54]}  e6 {[%clk 0:03:00]} 3. Nf3 {[%clk 0:02:53]}  a6 {[%clk 0:03:00]} 4. g3 {[%clk 0:02:52]}  dxc4 {[%clk 0:03:00]} 5. Bg2 {[%clk 0:02:52]}  b5 {[%clk 0:03:00]} 6. a4 {[%clk 0:02:51]}  Bb7 {[%clk 0:03:00]} 7. O-O {[%clk 0:02:51]}  Nf6 {[%clk 0:03:00]} 8. b3 {[%clk 0:02:51]}  cxb3 {[%clk 0:02:59]} 9. Qxb3 {[%clk 0:02:50]}  b4 {[%clk 0:02:57]} 10. a5 {[%clk 0:02:48]}  Nbd7 {[%clk 0:02:51]} 11. Bd2 {[%clk 0:02:47]}  Rb8 {[%clk 0:02:49]} 12. Ra4 {[%clk 0:02:40]}  c5 {[%clk 0:02:46]} 13. Bf4 {[%clk 0:02:21]}  Rc8 {[%clk 0:02:40]} 14. Rd1 {[%clk 0:01:57]}  c4 {[%clk 0:02:36]} 15. Qb2 {[%clk 0:01:28]}  c3 {[%clk 0:02:35]} 16. Nxc3 {[%clk 0:01:20]}  Rxc3 {[%clk 0:02:36]} 17. Rxb4 {[%clk 0:01:20]}  Bxb4 {[%clk 0:02:30]} 18. Qxb4 {[%clk 0:01:20]}  Bxf3 {[%clk 0:02:29]} 19. Qxc3 {[%clk 0:01:09]}  Bxg2 {[%clk 0:02:27]} 20. Kxg2 {[%clk 0:01:09]}  O-O {[%clk 0:02:17]} 21. Rb1 {[%clk 0:01:02]}  Qa8+ {[%clk 0:02:12]} 22. f3 {[%clk 0:01:00]}  Nd5 {[%clk 0:02:12]} 23. Qd2 {[%clk 0:00:59]}  Nxf4+ {[%clk 0:02:12]} 24. Qxf4 {[%clk 0:00:59]}  Nf6 {[%clk 0:02:04]} 25. Qc7 {[%clk 0:00:52]}  Nd5 {[%clk 0:02:02]} 26. Qb7 {[%clk 0:00:44]}  Qxb7 {[%clk 0:02:00]} 27. Rxb7 {[%clk 0:00:44]}  Ne3+ {[%clk 0:02:01]} 28. Kf2 {[%clk 0:00:43]}  Nc4 {[%clk 0:02:02]} 29. Ra7 {[%clk 0:00:42]}  Nxa5 {[%clk 0:02:02]} 30. Rxa6 {[%clk 0:00:42]}  Nc4 {[%clk 0:02:02]} 31. Ra4 {[%clk 0:00:42]}  Nb6 {[%clk 0:02:01]} 32. Ra6 {[%clk 0:00:41]}  Nd5 {[%clk 0:02:01]} 33. e4 {[%clk 0:00:40]}  Nf6 {[%clk 0:01:57]} 34. Ke3 {[%clk 0:00:40]}  Rb8 {[%clk 0:01:57]} 35. g4 {[%clk 0:00:37]}  g5 {[%clk 0:01:55]} 36. d5 {[%clk 0:00:35]}  Re8 {[%clk 0:01:38]} 37. dxe6 {[%clk 0:00:28]}  Rxe6 {[%clk 0:01:31]} 38. Ra5 {[%clk 0:00:28]}  h6 {[%clk 0:01:31]} 39. Kd4 {[%clk 0:00:25]}  Kg7 {[%clk 0:01:29]} 40. Ra1 {[%clk 0:00:21]}  Rd6+ {[%clk 0:01:29]} 41. Ke5 {[%clk 0:00:20]}  Rd3 {[%clk 0:01:24]} 42. h4 {[%clk 0:00:19]}  Rxf3 {[%clk 0:01:23]} 43. hxg5 {[%clk 0:00:19]}  Nxg4+ {[%clk 0:01:23]} 44. Kd4 {[%clk 0:00:18]}  hxg5 {[%clk 0:01:24]} 45. Rg1 {[%clk 0:00:17]}  Rf4 {[%clk 0:01:25]} 46. Kd5 {[%clk 0:00:17]}  Nf6+ {[%clk 0:01:24]} 47. Ke5 {[%clk 0:00:17]}  Kg6 {[%clk 0:01:22]} 48. Kd6 {[%clk 0:00:15]}  Rxe4 {[%clk 0:01:22]} 49. Kc5 {[%clk 0:00:14]}  Nh5 {[%clk 0:01:20]} 50. Kd5 {[%clk 0:00:14]}  f5 {[%clk 0:01:20]} 51. Kd6 {[%clk 0:00:13]}  Nf6 {[%clk 0:01:20]} 52. Kc5 {[%clk 0:00:13]}  g4 {[%clk 0:01:21]} 53. Rf1 {[%clk 0:00:12]}  f4 {[%clk 0:01:21]} 54. Rg1 {[%clk 0:00:10]}  f3 {[%clk 0:01:21]} 55. Kd6 {[%clk 0:00:09]}  Kf5 {[%clk 0:01:22]} 56. Rf1 {[%clk 0:00:08]}  Kf4 {[%clk 0:01:22]} 57. Rh1 {[%clk 0:00:07]}  g3 {[%clk 0:01:22]} 58. Rh4+ {[%clk 0:00:07]}  Ng4 {[%clk 0:01:22]} 59. Kc5 {[%clk 0:00:06]}  g2 {[%clk 0:01:22]} 0-1


[Site "https://www.chess.com"]

[Event "Titled Tuesday Blitz April 18 Late 2023"]
[White "Jovic, Stanoje"]
[Black "Terry, Renato"]
[WhiteFideId "905020"]
[BlackFideId "3803457"]
[WhiteElo "2236"]
[BlackElo "2575"]
[Result "0-1"]
[Round "01"]
[TimeControl "180+2"]
[Date "2023.04.18"]
[WhiteClock "0:00:13"]
[BlackClock "0:01:44"]

1. c4 {[%clk 0:03:00]}  e5 {[%clk 0:02:58]} 2. g3 {[%clk 0:03:00]}  Nc6 {[%clk 0:02:58]} 3. Bg2 {[%clk 0:03:01]}  g6 {[%clk 0:02:59]} 4. Nc3 {[%clk 0:02:58]}  Bg7 {[%clk 0:02:59]} 5. Nf3 {[%clk 0:02:58]}  Nge7 {[%clk 0:03:00]} 6. O-O {[%clk 0:02:58]}  O-O {[%clk 0:03:01]} 7. Rb1 {[%clk 0:02:57]}  a5 {[%clk 0:03:00]} 8. a3 {[%clk 0:02:57]}  Nd4 {[%clk 0:03:00]} 9. Ne1 {[%clk 0:02:52]}  d6 {[%clk 0:03:00]} 10. e3 {[%clk 0:02:52]}  Ne6 {[%clk 0:03:01]} 11. b4 {[%clk 0:02:49]}  axb4 {[%clk 0:03:02]} 12. axb4 {[%clk 0:02:49]}  f5 {[%clk 0:03:02]} 13. Nc2 {[%clk 0:02:46]}  f4 {[%clk 0:03:02]} 14. d4 {[%clk 0:02:42]}  fxe3 {[%clk 0:02:57]} 15. Bxe3 {[%clk 0:02:38]}  Nf5 {[%clk 0:02:57]} 16. d5 {[%clk 0:02:30]}  Nxe3 {[%clk 0:02:55]} 17. fxe3 {[%clk 0:02:30]}  Ng5 {[%clk 0:02:54]} 18. h4 {[%clk 0:02:27]}  Nf7 {[%clk 0:02:51]} 19. Ne4 {[%clk 0:02:26]}  Bf5 {[%clk 0:02:50]} 20. c5 {[%clk 0:02:05]}  Ra2 {[%clk 0:02:31]} 21. Rf2 {[%clk 0:01:51]}  Nh6 {[%clk 0:02:30]} 22. Ne1 {[%clk 0:01:47]}  Rxf2 {[%clk 0:02:29]} 23. Nxf2 {[%clk 0:01:41]}  Bxb1 {[%clk 0:02:29]} 24. Qxb1 {[%clk 0:01:41]}  Nf5 {[%clk 0:02:29]} 25. Ne4 {[%clk 0:01:30]}  Nxe3 {[%clk 0:02:29]} 26. Bh3 {[%clk 0:01:30]}  dxc5 {[%clk 0:02:23]} 27. d6 {[%clk 0:01:24]}  Nf5 {[%clk 0:02:17]} 28. Qb3+ {[%clk 0:01:20]}  Kh8 {[%clk 0:02:16]} 29. bxc5 {[%clk 0:01:16]}  cxd6 {[%clk 0:02:16]} 30. cxd6 {[%clk 0:01:12]}  Nxd6 {[%clk 0:02:14]} 31. Ng5 {[%clk 0:01:07]}  Qf6 {[%clk 0:02:14]} 32. Ng2 {[%clk 0:00:56]}  Qf2+ {[%clk 0:01:54]} 33. Kh2 {[%clk 0:00:54]}  h6 {[%clk 0:01:55]} 34. Ne6 {[%clk 0:00:50]}  Rf3 {[%clk 0:01:55]} 35. Qd5 {[%clk 0:00:18]}  Qxg3+ {[%clk 0:01:53]} 36. Kg1 {[%clk 0:00:17]}  Rd3 {[%clk 0:01:45]} 37. Qa5 {[%clk 0:00:13]}  Rd1+ {[%clk 0:01:44]} 0-1


[Site "https://www.chess.com"]

[Event "Titled Tuesday Blitz April 18 Late 2023"]
[White "Gupta, Abhijeet"]
[Black "Shubenkova, Veronika"]
[WhiteFideId "5010608"]
[BlackFideId "44124040"]
[WhiteElo "2528"]
[BlackElo "2027"]
[Result "1-0"]
[Round "01"]
[TimeControl "180+2"]
[Date "2023.04.18"]
[WhiteClock "0:00:06"]
[BlackClock "0:00:03"]

1. d4 {[%clk 0:02:58]}  d5 {[%clk 0:02:58]} 2. Nf3 {[%clk 0:02:57]}  e6 {[%clk 0:02:58]} 3. Bf4 {[%clk 0:02:56]}  Nf6 {[%clk 0:02:58]} 4. e3 {[%clk 0:02:56]}  Bd6 {[%clk 0:02:58]} 5. Nbd2 {[%clk 0:02:56]}  O-O {[%clk 0:02:56]} 6. c3 {[%clk 0:02:56]}  b6 {[%clk 0:02:56]} 7. Bd3 {[%clk 0:02:52]}  Bb7 {[%clk 0:02:55]} 8. h4 {[%clk 0:02:50]}  c5 {[%clk 0:02:55]} 9. h5 {[%clk 0:02:49]}  Ne4 {[%clk 0:02:54]} 10. h6 {[%clk 0:02:49]}  g6 {[%clk 0:02:53]} 11. Ne5 {[%clk 0:02:42]}  cxd4 {[%clk 0:02:44]} 12. Bxe4 {[%clk 0:02:14]}  Bxe5 {[%clk 0:02:33]} 13. Bxe5 {[%clk 0:02:11]}  dxe3 {[%clk 0:02:23]} 14. fxe3 {[%clk 0:01:57]}  dxe4 {[%clk 0:02:22]} 15. Bg7 {[%clk 0:01:57]}  Qg5 {[%clk 0:02:17]} 16. Qe2 {[%clk 0:01:50]}  Rd8 {[%clk 0:02:12]} 17. O-O-O {[%clk 0:01:49]}  Na6 {[%clk 0:02:06]} 18. Kb1 {[%clk 0:01:35]}  Rd3 {[%clk 0:02:04]} 19. Nb3 {[%clk 0:01:30]}  Rad8 {[%clk 0:02:02]} 20. Rde1 {[%clk 0:01:26]}  Nc7 {[%clk 0:01:50]} 21. Qf2 {[%clk 0:01:21]}  f5 {[%clk 0:01:48]} 22. Nd4 {[%clk 0:01:18]}  Kf7 {[%clk 0:01:25]} 23. g4 {[%clk 0:01:12]}  Nd5 {[%clk 0:01:07]} 24. gxf5 {[%clk 0:01:11]}  exf5 {[%clk 0:01:04]} 25. Rhg1 {[%clk 0:01:11]}  Qh5 {[%clk 0:01:03]} 26. Rg3 {[%clk 0:00:57]}  Rd1+ {[%clk 0:00:52]} 27. Kc2 {[%clk 0:00:55]}  Nb4+ {[%clk 0:00:06]} 28. cxb4 {[%clk 0:00:42]}  Rc8+ {[%clk 0:00:05]} 29. Nc6 {[%clk 0:00:42]}  Rxc6+ {[%clk 0:00:05]} 30. Bc3 {[%clk 0:00:42]}  Rxe1 {[%clk 0:00:04]} 31. Qxe1 {[%clk 0:00:43]}  Ba6 {[%clk 0:00:05]} 32. Rg2 {[%clk 0:00:31]}  Bd3+ {[%clk 0:00:05]} 33. Kc1 {[%clk 0:00:31]}  f4 {[%clk 0:00:05]} 34. exf4 {[%clk 0:00:21]}  Qf5 {[%clk 0:00:05]} 35. Qe3 {[%clk 0:00:20]}  b5 {[%clk 0:00:03]} 36. Rg5 {[%clk 0:00:20]}  Qd7 {[%clk 0:00:02]} 37. f5 {[%clk 0:00:20]}  Rxc3+ {[%clk 0:00:01]} 38. bxc3 {[%clk 0:00:19]}  Qc7 {[%clk 0:00:02]} 39. fxg6+ {[%clk 0:00:18]}  Ke8 {[%clk 0:00:03]} 40. Rc5 {[%clk 0:00:10]}  Qh2 {[%clk 0:00:03]} 41. Qd2 {[%clk 0:00:06]}  Qg1+ {[%clk 0:00:03]} 42. Kb2 {[%clk 0:00:07]}  Qb1+ {[%clk 0:00:02]} 43. Ka3 {[%clk 0:00:08]}  Qa1 {[%clk 0:00:02]} 44. gxh7 {[%clk 0:00:07]}  a5 {[%clk 0:00:02]} 45. h8=Q+ {[%clk 0:00:07]}  Kd7 {[%clk 0:00:03]} 46. Qg7+ {[%clk 0:00:07]}  Kd8 {[%clk 0:00:03]} 47. Qf6+ {[%clk 0:00:07]}  Kd7 {[%clk 0:00:03]} 48. Qd4+ {[%clk 0:00:07]}  Ke8 {[%clk 0:00:03]} 49. Rc8+ {[%clk 0:00:06]}  Ke7 {[%clk 0:00:02]} 50. Qd8+ {[%clk 0:00:06]}  Ke6 {[%clk 0:00:03]} 51. Rc6+ {[%clk 0:00:06]}  Kf5 {[%clk 0:00:03]} 52. Q2g5# {[%clk 0:00:06]} 1-0


[Site "https://www.chess.com"]

[Event "Titled Tuesday Blitz April 18 Late 2023"]
[White "Koc, Przemyslaw"]
[Black "Bortnyk, Olexandr"]
[WhiteFideId "1109081"]
[BlackFideId "14120828"]
[WhiteElo "2161"]
[BlackElo "2734"]
[Result "0-1"]
[Round "01"]
[TimeControl "180+2"]
[Date "2023.04.18"]
[WhiteClock "0:00:02"]
[BlackClock "0:00:16"]

1. Nf3 {[%clk 0:02:59]}  Nf6 {[%clk 0:02:58]} 2. d4 {[%clk 0:02:59]}  b6 {[%clk 0:02:58]} 3. Bg5 {[%clk 0:02:57]}  Bb7 {[%clk 0:02:58]} 4. Nbd2 {[%clk 0:02:58]}  g6 {[%clk 0:02:57]} 5. e3 {[%clk 0:02:52]}  Bg7 {[%clk 0:02:57]} 6. Bd3 {[%clk 0:02:52]}  O-O {[%clk 0:02:57]} 7. O-O {[%clk 0:02:51]}  c5 {[%clk 0:02:57]} 8. c3 {[%clk 0:02:51]}  d5 {[%clk 0:02:56]} 9. Qe2 {[%clk 0:02:50]}  Nbd7 {[%clk 0:02:54]} 10. e4 {[%clk 0:02:42]}  dxe4 {[%clk 0:02:52]} 11. Nxe4 {[%clk 0:02:42]}  cxd4 {[%clk 0:02:51]} 12. cxd4 {[%clk 0:02:40]}  Nxe4 {[%clk 0:02:47]} 13. Bxe4 {[%clk 0:02:41]}  Bxe4 {[%clk 0:02:48]} 14. Qxe4 {[%clk 0:02:41]}  Nf6 {[%clk 0:02:49]} 15. Bxf6 {[%clk 0:02:40]}  Bxf6 {[%clk 0:02:50]} 16. Rac1 {[%clk 0:02:34]}  Qd7 {[%clk 0:02:41]} 17. Rfd1 {[%clk 0:02:29]}  Rac8 {[%clk 0:02:38]} 18. b3 {[%clk 0:02:23]}  Rxc1 {[%clk 0:02:36]} 19. Rxc1 {[%clk 0:02:24]}  Rc8 {[%clk 0:02:36]} 20. Rxc8+ {[%clk 0:02:17]}  Qxc8 {[%clk 0:02:37]} 21. g3 {[%clk 0:02:16]}  Kg7 {[%clk 0:02:29]} 22. Kg2 {[%clk 0:02:16]}  h5 {[%clk 0:02:24]} 23. h4 {[%clk 0:02:16]}  Qd7 {[%clk 0:02:06]} 24. d5 {[%clk 0:02:01]}  Qd6 {[%clk 0:01:57]} 25. Qc4 {[%clk 0:01:56]}  Qa3 {[%clk 0:01:51]} 26. Qa4 {[%clk 0:01:37]}  Qxa4 {[%clk 0:01:50]} 27. bxa4 {[%clk 0:01:37]}  Bc3 {[%clk 0:01:49]} 28. Ng5 {[%clk 0:01:28]}  f5 {[%clk 0:01:47]} 29. Kf3 {[%clk 0:01:23]}  Kf6 {[%clk 0:01:36]} 30. Ke2 {[%clk 0:01:21]}  Bd4 {[%clk 0:01:23]} 31. f4 {[%clk 0:01:19]}  Bc3 {[%clk 0:01:13]} 32. Ne6 {[%clk 0:01:14]}  Kf7 {[%clk 0:01:08]} 33. Kf2 {[%clk 0:00:59]}  Ke8 {[%clk 0:00:59]} 34. Ke2 {[%clk 0:00:59]}  Kd7 {[%clk 0:00:54]} 35. Nf8+ {[%clk 0:00:59]}  Kd6 {[%clk 0:00:55]} 36. Nxg6 {[%clk 0:01:00]}  Bf6 {[%clk 0:00:52]} 37. Kd3 {[%clk 0:00:56]}  Kxd5 {[%clk 0:00:53]} 38. a3 {[%clk 0:00:42]}  e6 {[%clk 0:00:42]} 39. Ke3 {[%clk 0:00:38]}  Bd4+ {[%clk 0:00:28]} 40. Kf3 {[%clk 0:00:37]}  Bc5 {[%clk 0:00:22]} 41. Ne5 {[%clk 0:00:20]}  Bxa3 {[%clk 0:00:22]} 42. Nd7 {[%clk 0:00:20]}  Bb2 {[%clk 0:00:22]} 43. Ke3 {[%clk 0:00:16]}  Bd4+ {[%clk 0:00:18]} 44. Kd3 {[%clk 0:00:13]}  Bg7 {[%clk 0:00:15]} 45. Ke3 {[%clk 0:00:11]}  Kc6 {[%clk 0:00:13]} 46. Nb8+ {[%clk 0:00:07]}  Kb7 {[%clk 0:00:12]} 47. Nd7 {[%clk 0:00:06]}  Kc7 {[%clk 0:00:13]} 48. Ne5 {[%clk 0:00:04]}  Bxe5 {[%clk 0:00:13]} 49. fxe5 {[%clk 0:00:05]}  a5 {[%clk 0:00:14]} 50. Kf4 {[%clk 0:00:05]}  b5 {[%clk 0:00:14]} 51. axb5 {[%clk 0:00:04]}  a4 {[%clk 0:00:15]} 52. Kg5 {[%clk 0:00:02]}  a3 {[%clk 0:00:16]} 53. Kxh5 {[%clk 0:00:02]}  a2 {[%clk 0:00:16]} 0-1


[Site "https://www.chess.com"]

[Event "Titled Tuesday Blitz April 18 Late 2023"]
[White "Kovalevsky, Stanislav"]
[Black "Svane, Frederik"]
[WhiteFideId "13508598"]
[BlackFideId "12923044"]
[WhiteElo "2174"]
[BlackElo "2502"]
[Result "0-1"]
[Round "01"]
[TimeControl "180+2"]
[Date "2023.04.18"]
[WhiteClock "0:00:51"]
[BlackClock "0:01:30"]

1. c4 {[%clk 0:02:57]}  e6 {[%clk 0:02:49]} 2. e4 {[%clk 0:02:57]}  c5 {[%clk 0:02:39]} 3. Nc3 {[%clk 0:02:56]}  Nc6 {[%clk 0:02:31]} 4. g3 {[%clk 0:02:56]}  b6 {[%clk 0:02:22]} 5. Bg2 {[%clk 0:02:56]}  Bb7 {[%clk 0:02:22]} 6. Nge2 {[%clk 0:02:55]}  h5 {[%clk 0:02:23]} 7. d4 {[%clk 0:02:53]}  cxd4 {[%clk 0:02:23]} 8. Nxd4 {[%clk 0:02:54]}  Bc5 {[%clk 0:02:23]} 9. Be3 {[%clk 0:02:53]}  Nge7 {[%clk 0:02:19]} 10. Nxc6 {[%clk 0:02:50]}  Nxc6 {[%clk 0:02:20]} 11. Bxc5 {[%clk 0:02:51]}  bxc5 {[%clk 0:02:21]} 12. Qd6 {[%clk 0:02:51]}  Nd4 {[%clk 0:02:14]} 13. O-O-O {[%clk 0:02:43]}  Qb6 {[%clk 0:02:08]} 14. Rxd4 {[%clk 0:02:25]}  cxd4 {[%clk 0:02:06]} 15. Nb5 {[%clk 0:02:26]}  Rc8 {[%clk 0:02:03]} 16. Qxb6 {[%clk 0:02:26]}  axb6 {[%clk 0:02:04]} 17. Nd6+ {[%clk 0:02:26]}  Ke7 {[%clk 0:02:04]} 18. Nxc8+ {[%clk 0:02:20]}  Rxc8 {[%clk 0:02:04]} 19. b3 {[%clk 0:02:19]}  b5 {[%clk 0:01:54]} 20. Kd2 {[%clk 0:01:52]}  bxc4 {[%clk 0:01:53]} 21. bxc4 {[%clk 0:01:52]}  Rxc4 {[%clk 0:01:54]} 22. Rb1 {[%clk 0:01:53]}  Bc6 {[%clk 0:01:52]} 23. Kd3 {[%clk 0:01:50]}  Ra4 {[%clk 0:01:49]} 24. Rb2 {[%clk 0:01:50]}  e5 {[%clk 0:01:48]} 25. Bf3 {[%clk 0:01:50]}  Ra3+ {[%clk 0:01:48]} 26. Ke2 {[%clk 0:01:50]}  f5 {[%clk 0:01:46]} 27. Bxh5 {[%clk 0:01:46]}  fxe4 {[%clk 0:01:46]} 28. Bg6 {[%clk 0:01:42]}  e3 {[%clk 0:01:43]} 29. f4 {[%clk 0:01:37]}  e4 {[%clk 0:01:39]} 30. g4 {[%clk 0:01:34]}  Bd5 {[%clk 0:01:39]} 31. h4 {[%clk 0:01:23]}  Rc3 {[%clk 0:01:39]} 32. Kd1 {[%clk 0:00:52]}  d3 {[%clk 0:01:35]} 33. h5 {[%clk 0:00:51]}  e2+ {[%clk 0:01:31]} 34. Rxe2 {[%clk 0:00:50]}  dxe2+ {[%clk 0:01:30]} 35. Kxe2 {[%clk 0:00:51]} 0-1


[Site "https://www.chess.com"]

[Event "Titled Tuesday Blitz April 18 Late 2023"]
[White "Sargsyan, Shant"]
[Black "Gasparyan, David"]
[WhiteFideId "13306766"]
[BlackFideId "13311980"]
[WhiteElo "2628"]
[BlackElo "2456"]
[Result "1-0"]
[Round "01"]
[TimeControl "180+2"]
[Date "2023.04.18"]
[WhiteClock "0:02:47"]
[BlackClock "0:02:34"]

1. g3 {[%clk 0:03:00]}  c5 {[%clk 0:02:59]} 2. Nf3 {[%clk 0:03:00]}  Nc6 {[%clk 0:03:00]} 3. Bg2 {[%clk 0:02:56]}  g6 {[%clk 0:03:00]} 4. h4 {[%clk 0:02:53]}  h5 {[%clk 0:02:58]} 5. d3 {[%clk 0:02:53]}  d6 {[%clk 0:02:57]} 6. c4 {[%clk 0:02:52]}  Bg7 {[%clk 0:02:57]} 7. Nc3 {[%clk 0:02:52]}  Nf6 {[%clk 0:02:57]} 8. Qd2 {[%clk 0:02:53]}  Qd7 {[%clk 0:02:54]} 9. b3 {[%clk 0:02:53]}  b6 {[%clk 0:02:54]} 10. Bb2 {[%clk 0:02:53]}  Bb7 {[%clk 0:02:55]} 11. Nd5 {[%clk 0:02:54]}  O-O-O {[%clk 0:02:46]} 12. Bh3 {[%clk 0:02:49]}  Ng4 {[%clk 0:02:34]} 13. Bxg7 {[%clk 0:02:47]} 1-0


[Site "https://www.chess.com"]

[Event "Titled Tuesday Blitz April 18 Late 2023"]
[White "Zhigalko_Sergei"]
[Black "QuiesPrecatio"]
[WhiteElo "2910"]
[BlackElo "2450"]
[Result "1-0"]
[Round "01"]
[TimeControl "180+2"]
[Date "2023.04.18"]
[WhiteClock "0:00:36"]
[BlackClock "0:00:20"]

1. e4 {[%clk 0:02:59]}  c6 {[%clk 0:02:54]} 2. d4 {[%clk 0:02:59]}  d5 {[%clk 0:02:54]} 3. e5 {[%clk 0:03:00]}  Bf5 {[%clk 0:02:53]} 4. Nf3 {[%clk 0:02:59]}  e6 {[%clk 0:02:54]} 5. Be2 {[%clk 0:03:00]}  Nd7 {[%clk 0:02:54]} 6. O-O {[%clk 0:03:00]}  h6 {[%clk 0:02:55]} 7. Nbd2 {[%clk 0:03:00]}  Ne7 {[%clk 0:02:54]} 8. a4 {[%clk 0:02:55]}  g5 {[%clk 0:02:51]} 9. a5 {[%clk 0:02:52]}  a6 {[%clk 0:02:49]} 10. Nb3 {[%clk 0:02:52]}  Bg7 {[%clk 0:02:46]} 11. Bd2 {[%clk 0:02:49]}  c5 {[%clk 0:01:55]} 12. Nxc5 {[%clk 0:02:41]}  Nxc5 {[%clk 0:01:54]} 13. dxc5 {[%clk 0:02:42]}  Nc6 {[%clk 0:01:51]} 14. Bc3 {[%clk 0:02:40]}  Be4 {[%clk 0:01:51]} 15. Re1 {[%clk 0:02:40]}  Qc7 {[%clk 0:01:37]} 16. Bd3 {[%clk 0:02:32]}  Bxf3 {[%clk 0:01:35]} 17. Qxf3 {[%clk 0:02:33]}  Nxe5 {[%clk 0:01:34]} 18. Qg3 {[%clk 0:02:25]}  d4 {[%clk 0:01:29]} 19. Bxd4 {[%clk 0:02:11]}  Nf3+ {[%clk 0:01:30]} 20. Qxf3 {[%clk 0:02:04]}  Bxd4 {[%clk 0:01:29]} 21. Rad1 {[%clk 0:01:51]}  Bxb2 {[%clk 0:01:10]} 22. Rxe6+ {[%clk 0:01:48]}  Kf8 {[%clk 0:01:10]} 23. Rb6 {[%clk 0:01:42]}  Be5 {[%clk 0:00:54]} 24. Rxb7 {[%clk 0:01:41]}  Bxh2+ {[%clk 0:00:54]} 25. Kh1 {[%clk 0:01:41]}  Qf4 {[%clk 0:00:55]} 26. Be4 {[%clk 0:00:40]}  Re8 {[%clk 0:00:41]} 27. Rdd7 {[%clk 0:00:36]}  f5 {[%clk 0:00:21]} 28. Rf7+ {[%clk 0:00:34]}  Kg8 {[%clk 0:00:21]} 29. Rg7+ {[%clk 0:00:35]}  Kf8 {[%clk 0:00:20]} 30. Rbf7# {[%clk 0:00:36]} 1-0


[Site "https://www.chess.com"]